bitfinex/quotes_BTCUSD_20230106
["timestamp","ask_amount","ask_price","bid_price","bid_amount"]
[1672968561084,0.81503835,16861.0,16860.0,1.75915599]
[1672968563449,0.63703084,16861.0,16860.0,1.75915599]
[1672968564707,0.81505114,16861.0,16860.0,1.75915599]
[1672968564961,0.45902913,16861.0,16860.0,1.75915599]
[1672968566238,0.81505114,16861.0,16860.0,1.75915599]
[1672968566756,0.45902913,16861.0,16860.0,1.75915599]
[1672968567018,0.81505114,16861.0,16860.0,1.16603699]
[1672968567756,0.45902913,16861.0,16860.0,1.75915599]
[1672968569860,0.81505114,16861.0,16860.0,1.75915599]
[1672968571430,0.81505114,16861.0,16860.0,1.75904525]
[1672968571922,0.63703084,16861.0,16860.0,1.75904525]
[1672968572259,0.81505585,16861.0,16860.0,1.75904525]
[1672968572447,0.45903384,16861.0,16860.0,1.75904525]
[1672968576812,0.45892848,16861.0,16860.0,1.75904525]
[1672968578145,0.19191965,16861.0,16860.0,3.15070974]
[1672968578980,0.19191965,16861.0,16860.0,2.85759074]
[1672968579230,0.01389464,16861.0,16860.0,2.85759074]
[1672968580011,0.01389464,16861.0,16860.0,2.55759074]
[1672968580521,0.44503384,16862.0,16860.0,2.55759074]
[1672968580773,0.014,16861.0,16860.0,1.87600625]
[1672968581024,0.014,16861.0,16860.0,3.12379836]
[1672968581336,0.014,16861.0,16860.0,3.45081737]
[1672968581533,0.44503384,16862.0,16860.0,3.15081737]
[1672968581785,0.45903384,16862.0,16861.0,0.62125512]
[1672968582049,0.44503384,16862.0,16861.0,1.86785612]
[1672968582309,0.80115179,16862.0,16861.0,1.86785612]
[1672968582592,0.80105585,16862.0,16861.0,1.86785612]
[1672968582820,0.44503384,16862.0,16861.0,1.86785612]
[1672968583602,0.45903384,16862.0,16861.0,1.86785612]
[1672968584837,0.44512978,16862.0,16861.0,1.86785612]
[1672968585143,0.45903384,16862.0,16861.0,1.86785612]
[1672968588648,0.45903384,16862.0,16861.0,1.80742312]
[1672968588964,0.45903384,16862.0,16861.0,1.86785412]
[1672968589157,0.44503384,16862.0,16861.0,1.86785412]
[1672968589411,0.46003384,16862.0,16861.0,1.86785412]
[1672968589662,0.44503384,16862.0,16861.0,1.86785412]
[1672968589915,0.45903384,16862.0,16861.0,1.86785412]
[1672968590433,0.19202501,16862.0,16861.0,1.86785412]
[1672968590966,0.19202501,16862.0,16861.0,1.80742312]
[1672968591225,0.19202501,16862.0,16861.0,1.86785412]
[1672968591550,0.45903384,16862.0,16861.0,1.86785412]
[1672968592514,0.45903384,16862.0,16861.0,1.80742312]
[1672968592820,0.45903384,16862.0,16861.0,1.86785412]
[1672968594113,0.19202501,16862.0,16861.0,1.86785412]
[1672968596784,0.19202501,16862.0,16861.0,3.02878536]
[1672968599605,0.17802501,16862.0,16861.0,3.02878536]
[1672968599869,0.19202501,16862.0,16861.0,3.02878536]
[1672968600373,0.014,16862.0,16861.0,3.32878536]
[1672968600886,0.014,16862.0,16861.0,3.02878536]
[1672968601954,0.014,16862.0,16861.0,3.32878536]
[1672968602222,0.014,16862.0,16861.0,3.50618536]
[1672968602742,0.014,16862.0,16861.0,3.77228535]
[1672968602997,0.01153592,16862.0,16861.0,3.77228535]
[1672968603553,0.01153592,16862.0,16861.0,4.64869611]
[1672968604349,1e-08,16862.0,16861.0,4.64869611]
[1672968605637,1e-08,16862.0,16861.0,3.20443811]
[1672968606415,1e-08,16862.0,16861.0,2.93833812]
[1672968606673,1e-08,16862.0,16861.0,3.20443811]
[1672968606932,1e-08,16862.0,16861.0,2.97397746]
[1672968607213,1e-08,16862.0,16861.0,3.24007745]
[1672968607465,1e-08,16862.0,16861.0,2.97397746]
[1672968608233,0.44503384,16864.0,16862.0,0.5]
[1672968608669,0.44503384,16864.0,16863.0,1.21426912]
[1672968608670,0.17802501,16864.0,16863.0,1.21426912]
[1672968608886,0.17802501,16864.0,16863.0,1.86770112]
[1672968609099,0.44503384,16864.0,16863.0,1.80728312]
[1672968609314,0.19202501,16864.0,16863.0,1.80728312]
[1672968609527,0.17802501,16864.0,16863.0,1.86769912]
[1672968610642,1.09106312,16865.0,16863.0,1.86769912]
[1672968610874,1.09106312,16865.0,16863.0,1.80728312]
[1672968611179,0.014,16864.0,16863.0,2.33642402]
[1672968611581,0.014,16864.0,16863.0,2.39683902]
[1672968611796,0.17802501,16864.0,16863.0,2.38383902]
[1672968612023,0.44503384,16864.0,16863.0,2.33642402]
[1672968612593,0.44503384,16864.0,16863.0,2.32342402]
[1672968612845,0.45903384,16864.0,16863.0,2.33642402]
[1672968614856,0.19202501,16864.0,16863.0,2.33642402]
[1672968615110,0.45903384,16864.0,16863.0,2.33642402]
[1672968615364,0.19202501,16864.0,16863.0,2.33642402]
[1672968618340,0.45903384,16864.0,16863.0,2.33642402]
[1672968619330,0.45903384,16864.0,16863.0,2.33652767]
[1672968620593,0.19202501,16864.0,16863.0,2.33652767]
[1672968620844,0.45903384,16864.0,16863.0,2.33652767]
[1672968628983,0.45903384,16864.0,16863.0,2.33642402]
[1672968631811,0.63703084,16864.0,16863.0,2.33642402]
[1672968632315,0.63703084,16864.0,16863.0,2.33652767]
[1672968632573,0.63703084,16864.0,16863.0,1.74351367]
[1672968635796,0.62303084,16864.0,16863.0,1.73051367]
[1672968636314,0.63703084,16864.0,16863.0,1.74351367]
[1672968636829,0.63712678,16864.0,16863.0,1.74351367]
[1672968637133,0.8151692,16864.0,16863.0,1.74341002]
[1672968639483,0.8151692,16864.0,16863.0,1.74351367]
[1672968640035,0.81526514,16864.0,16863.0,1.74341002]
[1672968640290,0.8151692,16864.0,16863.0,1.74341002]
[1672968640535,0.45914719,16864.0,16863.0,1.74341002]
[1672968640787,0.81513676,16864.0,16863.0,1.74341002]
[1672968641044,0.81511828,16864.0,16863.0,1.74341002]
[1672968641829,0.81511839,16864.0,16863.0,1.74341002]
[1672968642622,0.45914719,16864.0,16863.0,1.74341002]
[1672968642881,0.81509621,16864.0,16863.0,1.74341002]
[1672968644645,0.45924313,16864.0,16863.0,0.013]
[1672968644929,0.01409594,16864.0,16863.0,0.013]
[1672968645174,0.56534003,16864.0,16863.0,0.013]
[1672968645697,0.56524409,16864.0,16863.0,0.013]
[1672968645951,1.01013943,16864.0,16863.0,0.013]
[1672968648331,1.01023537,16864.0,16863.0,0.013]
[1672968648615,1.01013943,16864.0,16863.0,0.013]
[1672968649391,1.01023537,16864.0,16863.0,0.013]
[1672968650437,1.01013943,16864.0,16863.0,0.013]
[1672968653893,1.01023537,16864.0,16863.0,0.013]
[1672968654149,1.01013943,16864.0,16863.0,0.013]
[1672968654900,0.56534003,16864.0,16863.0,0.01289329]
[1672968655152,1.01013105,16864.0,16863.0,0.01289329]
[1672968655906,1.01013296,16864.0,16863.0,0.01289329]
[1672968658126,0.56534003,16864.0,16863.0,0.01289329]
[1672968658407,0.56524409,16864.0,16863.0,0.01289329]
[1672968658891,1.01000403,16864.0,16863.0,0.01289329]
[1672968659393,1.01009997,16864.0,16863.0,0.01289329]
[1672968660701,1.62162996,16864.0,16863.0,0.01289329]
[1672968660956,0.56534003,16864.0,16863.0,0.01289329]
[1672968661472,1.17687003,16864.0,16863.0,0.01289329]
[1672968661742,0.56534003,16864.0,16863.0,0.01289329]
[1672968663556,1.00999527,16864.0,16863.0,0.01289329]
[1672968663805,1.62152527,16864.0,16863.0,0.01289329]
[1672968664066,1.00999527,16864.0,16863.0,0.01289329]
[1672968664823,1.00999527,16864.0,16863.0,0.012]
[1672968667050,1.01009121,16864.0,16863.0,0.012]
[1672968669882,0.56534003,16864.0,16863.0,0.012]
[1672968670390,1.01014878,16864.0,16863.0,0.012]
[1672968671420,0.56524409,16864.0,16863.0,0.012]
[1672968672426,1.0100874,16864.0,16863.0,0.012]
[1672968673245,0.56524409,16864.0,16863.0,0.012]
[1672968675536,0.56534003,16864.0,16863.0,0.012]
[1672968675846,0.56524409,16864.0,16863.0,0.012]
[1672968676571,0.56534003,16864.0,16863.0,0.012]
[1672968676830,0.56534003,16864.0,16863.0,0.01190583]
[1672968678885,1.17687003,16864.0,16863.0,0.01190583]
[1672968679138,0.56534003,16864.0,16863.0,0.01190583]
[1672968679392,0.56524409,16864.0,16863.0,0.01190583]
[1672968680690,1.17677409,16864.0,16863.0,0.01190583]
[1672968681172,0.56524409,16864.0,16863.0,0.01190583]
[1672968681669,1.17677409,16864.0,16863.0,0.01190583]
[1672968683135,1.71070108,16864.0,16863.0,0.01190583]
[1672968683390,2.89665908,16864.0,16863.0,0.01190583]
[1672968683668,2.28512908,16864.0,16863.0,0.01190583]
[1672968683934,2.89665908,16864.0,16863.0,0.01190583]
[1672968684195,2.28512908,16864.0,16863.0,0.01190583]
[1672968684456,2.89665908,16864.0,16863.0,0.01190583]
[1672968685808,2.28512908,16864.0,16863.0,0.01190583]
[1672968686103,1.69205414,16864.0,16863.0,0.01190583]
[1672968686831,0.56524409,16864.0,16863.0,0.01190583]
[1672968687364,0.56524409,16864.0,16863.0,1.16638398]
[1672968687632,0.45899823,16864.0,16863.0,1.16638398]
[1672968689734,0.45909417,16864.0,16863.0,1.16638398]
[1672968690043,0.01409594,16864.0,16863.0,1.16638398]
[1672968691099,0.014,16864.0,16863.0,1.16638398]
[1672968691400,0.45898055,16864.0,16863.0,1.16638398]
[1672968691916,0.45907649,16864.0,16863.0,1.16638398]
[1672968692163,0.45898055,16864.0,16863.0,1.16638398]
[1672968692415,0.014,16864.0,16863.0,1.16638398]
[1672968693198,0.01409594,16864.0,16863.0,1.16638398]
[1672968693454,0.014,16864.0,16863.0,1.16638398]
[1672968694559,0.01409594,16864.0,16863.0,1.16638398]
[1672968696114,0.014,16864.0,16863.0,1.16638398]
[1672968696658,0.01409594,16864.0,16863.0,1.16638398]
[1672968696959,0.014,16864.0,16863.0,1.16638398]
[1672968697753,0.4589774,16864.0,16863.0,1.16638398]
[1672968698060,0.014,16864.0,16863.0,1.16638398]
[1672968698579,0.01409594,16864.0,16863.0,1.16638398]
[1672968699095,0.014,16864.0,16863.0,1.16638398]
[1672968699863,0.01409594,16864.0,16863.0,1.16638398]
[1672968700605,0.01409594,16864.0,16863.0,0.54512886]
[1672968701118,0.01409594,16864.0,16863.0,1.16630583]
[1672968701364,0.01409594,16864.0,16863.0,0.54505071]
[1672968701615,0.01409594,16864.0,16863.0,0.01182768]
[1672968701944,0.71816928,16864.0,16863.0,0.01182768]
[1672968702078,1.31114828,16864.0,16863.0,0.01182768]
[1672968705007,1.84497933,16864.0,16863.0,0.01182768]
[1672968705262,1.31114828,16864.0,16863.0,0.01182768]
[1672968705514,1.31105234,16864.0,16863.0,0.01182768]
[1672968706060,0.71807334,16864.0,16863.0,0.01182768]
[1672968709049,0.71816928,16864.0,16863.0,0.01182768]
[1672968710875,0.71816928,16864.0,16863.0,0.01984068]
[1672968712955,1.01816928,16864.0,16863.0,0.01984068]
[1672968713229,1.25200033,16864.0,16863.0,0.01984068]
[1672968713502,0.71816928,16864.0,16863.0,0.01984068]
[1672968713710,1.25200033,16864.0,16863.0,0.01984068]
[1672968714497,0.71816928,16864.0,16863.0,0.01984068]
[1672968715262,1.25200033,16864.0,16863.0,0.01984068]
[1672968715526,0.71816928,16864.0,16863.0,0.01984068]
[1672968716535,0.71807334,16864.0,16863.0,0.01984068]
[1672968718878,1.71105234,16864.0,16863.0,0.01984068]
[1672968719107,2.32250451,16864.0,16863.0,0.01984068]
[1672968719401,2.32260045,16864.0,16863.0,0.01984068]
[1672968719872,1.69714828,16864.0,16863.0,0.008013]
[1672968720189,1.70114828,16864.0,16863.0,0.146013]
[1672968720430,2.30867828,16864.0,16863.0,0.008013]
[1672968720717,3.43948833,16864.0,16863.0,0.146013]
[1672968722483,3.03948833,16864.0,16863.0,0.146013]
[1672968722749,2.42786239,16864.0,16863.0,0.146013]
[1672968722979,1.89403134,16864.0,16863.0,0.146013]
[1672968723233,2.42786239,16864.0,16863.0,0.146013]
[1672968723483,1.30105234,16864.0,16863.0,0.146013]
[1672968724009,1.83488339,16864.0,16863.0,0.146013]
[1672968724263,1.30105234,16864.0,16863.0,0.146013]
[1672968726632,1.30114828,16864.0,16863.0,0.146013]
[1672968727938,1.83497933,16864.0,16863.0,0.146013]
[1672968728438,1.30114828,16864.0,16863.0,0.146013]
[1672968728690,1.83497933,16864.0,16863.0,0.146013]
[1672968729002,1.30114828,16864.0,16863.0,0.146013]
[1672968735166,1.30105234,16864.0,16863.0,0.146013]
[1672968735435,1.30105234,16864.0,16863.0,0.008013]
[1672968735436,0.70407334,16864.0,16863.0,0.008013]
[1672968735710,0.70807334,16864.0,16863.0,0.146013]
[1672968735971,1.30105234,16864.0,16863.0,0.146013]
[1672968736812,1.83488339,16864.0,16863.0,0.146013]
[1672968738126,2.42786239,16864.0,16863.0,0.146013]
[1672968738933,2.42795833,16864.0,16863.0,0.146013]
[1672968739988,1.83497933,16864.0,16863.0,0.146013]
[1672968742125,1.83497933,16864.0,16863.0,0.14592032]
[1672968744523,1.83488339,16864.0,16863.0,0.14592032]
[1672968744838,1.30105234,16864.0,16863.0,0.14592032]
[1672968746621,0.70807334,16864.0,16863.0,0.14592032]
[1672968747492,1.30105234,16864.0,16863.0,0.14592032]
[1672968747746,1.83488339,16864.0,16863.0,0.14592032]
[1672968748483,1.30114828,16864.0,16863.0,0.14592032]
[1672968748778,1.83497933,16864.0,16863.0,0.14592032]
[1672968749537,1.30114828,16864.0,16863.0,0.14592032]
[1672968749787,1.83497933,16864.0,16863.0,0.14592032]
[1672968750064,1.30114828,16864.0,16863.0,0.14592032]
[1672968750302,1.83497933,16864.0,16863.0,0.14592032]
[1672968755897,2.44650933,16864.0,16863.0,0.14592032]
[1672968757494,1.83497933,16864.0,16863.0,0.14592032]
[1672968757757,2.44650933,16864.0,16863.0,0.14592032]
[1672968758770,1.83497933,16864.0,16863.0,0.14592032]
[1672968759546,1.30105234,16864.0,16863.0,0.14592032]
[1672968762073,0.70807334,16864.0,16863.0,0.14592032]
[1672968762598,1.31960334,16864.0,16863.0,0.14584111]
[1672968763137,1.31969928,16864.0,16863.0,0.76709623]
[1672968763382,0.70816928,16864.0,16863.0,0.76709623]
[1672968763665,0.70816928,16864.0,16863.0,0.14584111]
[1672968763933,0.70807334,16864.0,16863.0,0.76709623]
[1672968764238,0.70816928,16864.0,16863.0,0.76709623]
[1672968764471,0.70816928,16864.0,16863.0,0.14584111]
[1672968769279,0.70807334,16864.0,16863.0,0.76709623]
[1672968771965,1.15310613,16864.0,16863.0,0.76709623]
[1672968773147,1.15320207,16864.0,16863.0,0.76709623]
[1672968773893,1.15310613,16864.0,16863.0,0.76709623]
[1672968774113,1.15320207,16864.0,16863.0,0.76709623]
[1672968774368,1.15310613,16864.0,16863.0,0.76709623]
[1672968774646,0.44903279,16864.0,16863.0,0.76709623]
[1672968774916,0.44903279,16864.0,16863.0,0.82751223]
[1672968775126,0.44912873,16864.0,16863.0,0.76709623]
[1672968775390,0.44903279,16864.0,16863.0,0.76709623]
[1672968775639,0.80500872,16864.0,16863.0,0.76709623]
[1672968777214,0.80500872,16864.0,16863.0,1.36011023]
[1672968778496,0.80491912,16864.0,16863.0,1.36011023]
[1672968779633,0.80491912,16864.0,16863.0,0.76709623]
[1672968781323,0.80501506,16864.0,16863.0,0.76709623]
[1672968781582,0.80491912,16864.0,16863.0,0.76709623]
[1672968782127,0.44894319,16864.0,16863.0,0.76709623]
[1672968782363,0.44903913,16864.0,16863.0,0.76709623]
[1672968783581,0.44894319,16864.0,16863.0,0.76709623]
[1672968783845,0.44903913,16864.0,16863.0,0.76709623]
[1672968784363,0.80484494,16864.0,16863.0,0.76709623]
[1672968784653,0.44894319,16864.0,16863.0,0.76709623]
[1672968784897,0.80494095,16864.0,16863.0,0.76709623]
[1672968785180,0.44903913,16864.0,16863.0,0.76709623]
[1672968785409,0.80494098,16864.0,16863.0,0.76709623]
[1672968785677,0.44903913,16864.0,16863.0,0.76709623]
[1672968787501,0.80493517,16864.0,16863.0,0.76709623]
[1672968788557,0.80493517,16864.0,16863.0,0.14584111]
[1672968788558,1.12057135,16864.0,16863.0,0.14584111]
[1672968788811,1.73210135,16864.0,16863.0,0.14584111]
[1672968789608,1.12057135,16864.0,16863.0,0.14584111]
[1672968789916,1.12047541,16864.0,16863.0,0.14584111]
[1672968791408,1.12047541,16864.0,16863.0,0.76709623]
[1672968794473,1.12057135,16864.0,16863.0,0.76709623]
[1672968796784,1.12057135,16864.0,16863.0,0.14584111]
[1672968798028,0.67553856,16864.0,16863.0,0.14584111]
[1672968799331,1.26851756,16864.0,16863.0,0.14584111]
[1672968799588,1.88004756,16864.0,16863.0,0.14584111]
[1672968800543,1.26851756,16864.0,16863.0,0.14584111]
[1672968803097,1.26851756,16864.0,16863.0,0.14577868]
[1672968807129,1.88004756,16864.0,16863.0,0.14577868]
[1672968807645,1.26851756,16864.0,16863.0,0.14577868]
[1672968807898,1.88004756,16864.0,16863.0,0.14577868]
[1672968808139,1.26851756,16864.0,16863.0,0.14577868]
[1672968808654,1.88004756,16864.0,16863.0,0.14577868]
[1672968809373,1.26851756,16864.0,16863.0,0.14577868]
[1672968810335,1.88004756,16864.0,16863.0,0.14577868]
[1672968810604,1.26851756,16864.0,16863.0,0.14577868]
[1672968811132,1.88004756,16864.0,16863.0,0.14577868]
[1672968811393,1.26851756,16864.0,16863.0,0.14577868]
[1672968811689,1.88004756,16864.0,16863.0,0.14577868]
[1672968812206,1.26851756,16864.0,16863.0,0.14577868]
[1672968812991,1.88004756,16864.0,16863.0,0.14577868]
[1672968813268,1.26851756,16864.0,16863.0,0.14577868]
[1672968813521,2.47302656,16864.0,16863.0,0.14577868]
[1672968814629,1.86149656,16864.0,16863.0,0.14577868]
[1672968814884,2.47302656,16864.0,16863.0,0.14577868]
[1672968815400,2.39532761,16864.0,16863.0,0.14577868]
[1672968815675,3.00685761,16864.0,16863.0,0.14577868]
[1672968816198,2.95306561,16864.0,16863.0,0.14577868]
[1672968816991,2.34153561,16864.0,16863.0,0.14577868]
[1672968821732,2.34143967,16864.0,16863.0,0.14577868]
[1672968824737,1.80760862,16864.0,16863.0,0.14577868]
[1672968825198,2.34153561,16864.0,16863.0,0.14577868]
[1672968835350,2.34143967,16864.0,16863.0,0.14577868]
[1672968836156,2.95296967,16864.0,16863.0,0.14577868]
[1672968837139,2.34143967,16864.0,16863.0,0.14577868]
[1672968838987,2.34153561,16864.0,16863.0,0.14577868]
[1672968841001,2.34153561,16864.0,16863.0,0.14570776]
[1672968841516,2.95306561,16864.0,16863.0,0.14570776]
[1672968842277,2.34153561,16864.0,16863.0,0.14570776]
[1672968843055,3.54604461,16864.0,16863.0,0.14570776]
[1672968843305,2.93451461,16864.0,16863.0,0.14570776]
[1672968843561,3.54604461,16864.0,16863.0,0.14570776]
[1672968844516,2.93451461,16864.0,16863.0,0.14570776]
[1672968844771,3.54604461,16864.0,16863.0,0.14570776]
[1672968845295,2.93451461,16864.0,16863.0,0.14570776]
[1672968845541,3.54604461,16864.0,16863.0,0.14570776]
[1672968845786,2.93451461,16864.0,16863.0,0.14570776]
[1672968846031,3.54595928,16864.0,16863.0,0.14570776]
[1672968847009,2.93442928,16864.0,16863.0,0.14570776]
[1672968847259,3.54595928,16864.0,16863.0,0.14570776]
[1672968848371,2.95288434,16864.0,16863.0,0.14570776]
[1672968849923,2.34135434,16864.0,16863.0,0.14570776]
[1672968850845,2.95288434,16864.0,16863.0,0.14570776]
[1672968851690,2.34135434,16864.0,16863.0,0.14570776]
[1672968851899,2.95288434,16864.0,16863.0,0.14570776]
[1672968852137,2.34145028,16864.0,16863.0,0.14570776]
[1672968852854,2.95298028,16864.0,16863.0,0.14570776]
[1672968858966,3.56194491,16864.0,16863.0,0.14570776]
[1672968859243,3.01212823,16864.0,16863.0,0.14570776]
[1672968862694,3.01203229,16864.0,16863.0,0.14570776]
[1672968862950,2.34050508,16864.0,16863.0,0.14570776]
[1672968863448,2.95203508,16864.0,16863.0,0.14570776]
[1672968863706,3.01203229,16864.0,16863.0,0.14570776]
[1672968863976,2.40050229,16864.0,16863.0,0.14570776]
[1672968866335,2.40059823,16864.0,16863.0,0.14570776]
[1672968866596,3.01212823,16864.0,16863.0,0.14564776]
[1672968868655,2.40059823,16864.0,16863.0,0.14564776]
[1672968875972,2.95094292,16864.0,16863.0,0.14564776]
[1672968876239,4.16334132,16864.0,16863.0,0.14564776]
[1672968877161,3.56247292,16864.0,16863.0,0.14564776]
[1672968877421,3.01212823,16864.0,16863.0,0.14564776]
[1672968879732,3.01212823,16864.0,16863.0,0.00764776]
[1672968879987,3.01712823,16864.0,16863.0,0.13764776]
[1672968882494,3.56770689,16864.0,16863.0,0.13764776]
[1672968882742,4.16858036,16864.0,16863.0,0.13764776]
[1672968883559,3.61799663,16864.0,16863.0,0.13764776]
[1672968883782,3.01712823,16864.0,16863.0,0.13764776]
[1672968884039,3.61799663,16864.0,16863.0,0.13764776]
[1672968884549,3.01712823,16864.0,16863.0,0.13764776]
[1672968888399,3.61799663,16864.0,16863.0,0.13764776]
[1672968888690,3.01712823,16864.0,16863.0,0.13764776]
[1672968889416,3.61799663,16864.0,16863.0,0.13764776]
[1672968889682,3.01712823,16864.0,16863.0,0.13764776]
[1672968889979,3.01712823,16864.0,16863.0,0.137529]
[1672968890218,3.61799663,16864.0,16863.0,0.137529]
[1672968892581,3.01712823,16864.0,16863.0,0.137529]
[1672968893132,3.61799663,16864.0,16863.0,0.137529]
[1672968894208,3.01712823,16864.0,16863.0,0.137529]
[1672968899906,2.40559823,16864.0,16863.0,0.137529]
[1672968901947,2.40559823,16864.0,16863.0,0.130785]
[1672968903263,2.40559823,16864.0,16863.0,0.118878]
[1672968913427,2.40550229,16864.0,16863.0,0.118878]
[1672968917069,2.40559823,16864.0,16863.0,0.118878]
[1672968926887,3.00646663,16864.0,16863.0,0.118878]
[1672968927143,3.00646663,16864.0,16863.0,0.11881381]
[1672968928422,3.61799663,16864.0,16863.0,0.11881381]
[1672968929719,3.01712823,16864.0,16863.0,0.11881381]
[1672968931312,2.40559823,16864.0,16863.0,0.11881381]
[1672968933182,1.81252329,16864.0,16863.0,0.11881381]
[1672968934468,2.34584607,16864.0,16863.0,0.11881381]
[1672968936788,2.34594201,16864.0,16863.0,0.11881381]
[1672968937058,1.81261923,16864.0,16863.0,0.11881381]
[1672968941081,1.80761923,16864.0,16862.0,0.61865418]
[1672968941335,0.53328679,16863.0,16861.0,1.27481862]
[1672968941585,0.44440236,16862.0,16861.0,1.27481862]
[1672968943806,0.45040236,16862.0,16861.0,1.39481862]
[1672968944561,0.45040236,16862.0,16861.0,1.79481862]
[1672968944812,0.45040236,16862.0,16861.0,1.39481862]
[1672968945315,0.80592574,16862.0,16861.0,1.39481862]
[1672968946568,0.80592574,16862.0,16861.0,1.89481862]
[1672968946820,0.80592574,16862.0,16861.0,1.39481862]
[1672968947332,0.80602168,16862.0,16861.0,1.39481862]
[1672968947573,0.80592574,16862.0,16861.0,1.39481862]
[1672968947834,0.45040236,16862.0,16861.0,1.39481862]
[1672968948338,0.4504983,16862.0,16861.0,1.39481862]
[1672968949177,0.45040236,16862.0,16861.0,1.39481862]
[1672968950418,0.4504983,16862.0,16861.0,1.39481862]
[1672968950704,0.45040236,16862.0,16861.0,1.39481862]
[1672968950956,0.80586831,16862.0,16861.0,1.39481862]
[1672968951464,0.80596425,16862.0,16861.0,1.39474712]
[1672968952759,0.80586831,16862.0,16861.0,1.39474712]
[1672968953871,0.80596425,16862.0,16861.0,1.39474712]
[1672968954115,0.80588294,16862.0,16861.0,1.39474712]
[1672968957977,0.45041699,16862.0,16861.0,1.39474712]
[1672968958514,0.44525605,16862.0,16861.0,1.39474712]
[1672968959290,0.44535199,16862.0,16861.0,1.39474712]
[1672968961373,0.44525605,16862.0,16861.0,1.39474712]
[1672968962407,0.44535199,16862.0,16861.0,1.39474712]
[1672968962935,0.44535199,16862.0,16861.0,0.12]
[1672968963489,0.44535199,16862.0,16861.0,0.73865418]
[1672968964024,0.44535199,16862.0,16861.0,0.12]
[1672968964837,0.00609594,16862.0,16861.0,0.12]
[1672968965619,0.45045015,16862.0,16861.0,0.73865418]
[1672968965881,0.45045015,16862.0,16861.0,0.12]
[1672968966169,0.45045015,16862.0,16861.0,0.73865418]
[1672968967753,0.45045015,16862.0,16861.0,0.12]
[1672968968523,0.00609594,16862.0,16861.0,0.12]
[1672968970361,0.59914494,16862.0,16861.0,0.12]
[1672968971410,1.12221914,16862.0,16861.0,0.12]
[1672968971909,1.73374914,16862.0,16861.0,0.12]
[1672968972948,1.12221914,16862.0,16861.0,0.12]
[1672968973980,1.1221232,16862.0,16861.0,0.12]
[1672968974744,1.7151722,16862.0,16861.0,0.12]
[1672968975256,2.3267022,16862.0,16861.0,0.12]
[1672968975517,1.7151722,16862.0,16861.0,0.12]
[1672968975779,2.3267022,16862.0,16861.0,0.12]
[1672968976593,1.7151722,16862.0,16861.0,0.12]
[1672968976815,2.3267022,16862.0,16861.0,0.12]
[1672968977329,2.32679814,16862.0,16861.0,0.12]
[1672968977832,1.70926814,16862.0,16860.0,1.20347443]
[1672968978095,1.71526814,16862.0,16861.0,0.12]
[1672968978905,1.70926814,16862.0,16860.0,1.20347443]
[1672968979228,0.79997814,16861.0,16860.0,1.20347443]
[1672968980766,0.79997814,16861.0,16860.0,1.32247443]
[1672968981002,0.79997814,16861.0,16860.0,1.20347443]
[1672968981288,0.80597814,16861.0,16860.0,1.32247443]
[1672968982335,0.80597814,16861.0,16860.0,1.32237904]
[1672968993084,1.07252997,16861.0,16860.0,1.32237904]
[1672968995186,1.07256489,16861.0,16860.0,1.32237904]
[1672968995714,0.62813259,16861.0,16860.0,1.32237904]
[1672968996282,0.62813259,16861.0,16860.0,1.38281504]
[1672968997636,0.62822853,16861.0,16860.0,1.38281504]
[1672968997899,0.62813259,16861.0,16860.0,1.38281504]
[1672969002442,0.62822853,16861.0,16860.0,1.38281504]
[1672969002733,0.62813259,16861.0,16860.0,1.38281504]
[1672969003220,0.80597814,16861.0,16860.0,1.38270605]
[1672969004492,1.07259657,16861.0,16860.0,1.38270605]
[1672969004748,0.80597814,16861.0,16860.0,1.38270605]
[1672969004981,1.07259763,16861.0,16860.0,1.38270605]
[1672969005280,0.62816533,16861.0,16860.0,1.38270605]
[1672969005760,0.62826127,16861.0,16860.0,1.38270605]
[1672969006019,0.62816533,16861.0,16860.0,1.38270605]
[1672969006277,0.80597814,16861.0,16860.0,1.38270605]
[1672969006789,0.80607408,16861.0,16860.0,1.38270605]
[1672969008376,0.80597814,16861.0,16860.0,1.38270605]
[1672969009138,0.80607408,16861.0,16860.0,1.38270605]
[1672969009394,0.80597814,16861.0,16860.0,1.38270605]
[1672969010167,0.80607408,16861.0,16860.0,1.38270605]
[1672969010708,0.80597814,16861.0,16860.0,1.38270605]
[1672969012812,1.07260237,16861.0,16860.0,1.38270605]
[1672969013630,0.80597814,16861.0,16860.0,1.38270605]
[1672969013894,1.07259471,16861.0,16860.0,1.38270605]
[1672969014457,0.62816241,16861.0,16860.0,1.38270605]
[1672969015750,1.07269065,16861.0,16860.0,1.38270605]
[1672969016513,1.07259471,16861.0,16860.0,1.38270605]
[1672969016771,1.07269065,16861.0,16860.0,1.38270605]
[1672969017064,0.62825835,16861.0,16860.0,1.38270605]
[1672969017324,1.07269065,16861.0,16860.0,1.38270605]
[1672969017611,1.07259471,16861.0,16860.0,1.38270605]
[1672969018117,1.07269065,16861.0,16860.0,1.38270605]
[1672969018611,0.62825835,16861.0,16860.0,1.38270605]
[1672969018615,1.07269065,16861.0,16860.0,1.38270605]
[1672969019386,1.07266213,16861.0,16860.0,1.38270605]
[1672969019638,0.80607408,16861.0,16860.0,1.38270605]
[1672969020416,0.80597814,16861.0,16860.0,1.38270605]
[1672969024019,0.80607408,16861.0,16860.0,1.38270605]
[1672969025792,0.80607408,16861.0,16860.0,1.32218272]
[1672969026306,0.80607408,16861.0,16860.0,0.70352854]
[1672969028346,0.80607408,16861.0,16860.0,1.32218272]
[1672969030408,0.80607408,16861.0,16860.0,1.38262172]
[1672969031288,0.80607408,16861.0,16860.0,1.32218272]
[1672969031736,0.80597814,16861.0,16860.0,1.32218272]
[1672969035222,0.80607408,16861.0,16860.0,1.32218272]
[1672969035743,0.80597814,16861.0,16860.0,1.32218272]
[1672969036000,0.80590546,16861.0,16860.0,1.32218272]
[1672969036260,0.8060014,16861.0,16860.0,1.32218272]
[1672969036501,0.8060014,16861.0,16860.0,1.38262172]
[1672969037018,0.8060014,16861.0,16860.0,0.179439]
[1672969037267,0.45052824,16861.0,16860.0,0.179439]
[1672969037517,0.45052824,16861.0,16860.0,0.119]
[1672969039578,0.4504323,16861.0,16860.0,0.119]
[1672969040075,0.4504323,16861.0,16860.0,0.73765418]
[1672969041115,0.4504323,16861.0,16860.0,0.79809318]
[1672969041368,0.4504323,16861.0,16860.0,0.73765418]
[1672969042363,0.4504323,16861.0,16860.0,0.119]
[1672969042878,0.4504323,16861.0,16860.0,0.73765418]
[1672969043136,0.45052824,16861.0,16860.0,0.79809318]
[1672969043386,0.45052824,16861.0,16860.0,0.73765418]
[1672969043878,0.80603987,16861.0,16860.0,0.79809318]
[1672969044133,0.45052824,16861.0,16860.0,0.79809318]
[1672969045156,0.80604226,16861.0,16860.0,0.79809318]
[1672969045949,0.80604226,16861.0,16860.0,0.73765418]
[1672969046196,0.80604226,16861.0,16860.0,0.119]
[1672969049910,0.80604226,16861.0,16860.0,0.79809318]